fUST/lending_fUST_20240811
["ID","MTS","AMOUNT","RATE_DAILY","PERIOD"]
[334623607,1723357839013,-1707.60441234,0.00019444,2]
[334623608,1723357839023,-203000.53760461,0.000198,2]
[334623609,1723357839033,-158.070941,0.000198,2]
[334623610,1723357839042,-158.070941,0.000198,2]
[334623611,1723357839052,-151.0,0.000198,2]
[334623612,1723357839061,-151.0,0.000198,2]
[334623613,1723357839070,-381.809534,0.000198,2]
[334623614,1723357839079,-381.809534,0.000198,2]
[334623615,1723357839089,-151.0,0.00019821,2]
[334623616,1723357839098,-200.0,0.00019873,2]
[334623617,1723357839107,-200.0,0.00019873,2]
[334623618,1723357839116,-200.0,0.00019873,2]
[334623619,1723357839126,-310710.90187205,0.0001988,2]
[334623637,1723357840500,-154.76012181,0.00015851,2]
[334623638,1723357840510,-192225.84168704,0.0001988,2]
[334623645,1723357843219,-2443.84952322,0.0001988,2]
[334623646,1723357843447,155.01550852,0.00012,2]
[334623672,1723357847445,201.59267893,0.00012,2]
[334623673,1723357849633,273.37336231,9.9e-05,2]
[334623677,1723357952683,156.87111249,0.00012,2]
[334623678,1723357962069,154.76012181,9.999e-05,2]
[334623688,1723357992683,156.87111249,0.00014545,2]
[334623689,1723358000287,154.76012181,0.00014545,2]
[334623693,1723358220342,154.76012181,9.999e-05,2]
[334623694,1723358268621,155.6631912,0.0001212,2]
[334623696,1723358294199,164.669354,0.00014247,2]
[334623703,1723358723181,250.0,0.00014975,2]
[334623704,1723358733370,168.022217,0.00014247,2]
[334623706,1723358789813,1856.2888188,0.00014346,2]
[334623707,1723358833125,-250.0,0.00015016,2]
[334623708,1723358833150,-250.0,0.00015057,2]
[334623709,1723358833174,-250.0,0.00015098,2]
[334623710,1723358833197,-300.0,0.00015127,2]
[334623711,1723358833220,-300.0,0.00015127,2]
[334623712,1723358833245,-3958.06323686,0.00015128,2]
[334623719,1723358957773,703.52944532,0.00015708,10]
[334623724,1723358989860,1216.29272211,0.0002333,32]
[334623757,1723359032671,-300.0,0.00015127,2]
[334623758,1723359032681,-20941.93676314,0.00015128,2]
[334623759,1723359032690,-250.0,0.00015139,2]
[334623760,1723359032699,-250.0,0.0001518,2]
[334623761,1723359032709,-250.0,0.00015221,2]
[334623762,1723359032718,-250.0,0.00015262,2]
[334623763,1723359032727,-250.0,0.00015304,2]
[334623764,1723359032737,-250.0,0.00015345,2]
[334623765,1723359032746,-250.0,0.00015386,2]
[334623766,1723359032756,-250.0,0.00015427,2]
[334623767,1723359032766,-250.0,0.00015468,2]
[334623768,1723359032775,-250.0,0.00015509,2]
[334623769,1723359032785,-979.52254522,0.00015512,2]
[334623770,1723359032795,-191.81369542,0.00015512,2]
[334623771,1723359032804,-250.0,0.0001555,2]
[334623772,1723359032813,-250.0,0.00015591,2]
[334623773,1723359032823,-250.0,0.00015632,2]
[334623774,1723359032833,-250.0,0.00015673,2]
[334623775,1723359032842,-154.76012181,0.00015712,2]
[334623776,1723359032852,-250.0,0.00015714,2]
[334623777,1723359032863,-209.31521257,0.00015751,2]
[334623778,1723359032874,-250.0,0.00015755,2]
[334623779,1723359032883,-368.049185,0.00015913,2]
[334623780,1723359032892,-6075.76403181,0.00015938,2]
[334623781,1723359032903,-28045.7272889,0.00016,2]
[334623782,1723359032914,-223.26161126,0.00016038,2]
[334623783,1723359032926,-674.87589793,0.00016038,2]
[334623784,1723359032938,-845.99366792,0.00016095,2]
[334623785,1723359032948,-628.44426496,0.00016095,2]
[334623786,1723359032958,-154.79103211,0.00016309,2]
[334623787,1723359032968,-179.45692193,0.00016532,2]
[334623788,1723359032977,-420.0,0.0001664,2]
[334623789,1723359032987,-816.94684465,0.00017,3]
[334623790,1723359032996,-270.13244885,0.00017019,2]
[334623791,1723359033006,-20777.37607493,0.00017881,2]
[334623792,1723359033016,-5240.178669,0.00018,2]
[334623793,1723359033026,-3214.69632495,0.00018201,2]
[334623794,1723359033036,-587.0,0.00018304,2]
[334623795,1723359033046,-251.58618591,0.00018316,2]
[334623796,1723359033055,-494.6780177,0.00018337,2]
[334623797,1723359033066,-3214.69632495,0.0001842,2]
[334623798,1723359033076,-3214.69632495,0.0001864,2]
[334623799,1723359033087,-3214.69632495,0.00018859,2]
[334623800,1723359033097,-168.6,0.00018859,2]
[334623801,1723359033106,-153.0,0.00018892,2]
[334623802,1723359033116,-153.0,0.00018892,2]
[334623803,1723359033127,-153.0,0.00018892,2]
[334623804,1723359033136,-153.0,0.00018892,2]
[334623805,1723359033146,-153.0,0.00018892,2]
[334623806,1723359033156,-153.0,0.00018892,2]
[334623807,1723359033167,-153.0,0.00018892,2]
[334623808,1723359033176,-153.0,0.00018892,2]
[334623809,1723359033186,-153.0,0.00018892,2]
[334623810,1723359033195,-153.0,0.00018892,2]
[334623811,1723359033205,-153.0,0.00018892,2]
[334623812,1723359033215,-153.0,0.00018892,2]
[334623813,1723359033225,-269.223466,0.00018904,2]
[334623814,1723359033234,-526.52651628,0.00018989,2]
[334623815,1723359033244,-240.33401189,0.00018989,2]
[334623816,1723359033254,-500.0,0.00018989,2]
[334623817,1723359033264,-500.0,0.00018989,2]
[334623818,1723359033273,-500.0,0.00018989,2]
[334623819,1723359033284,-500.0,0.00018989,2]
[334623820,1723359033294,-500.0,0.00018989,2]
[334623821,1723359033303,-500.0,0.00018989,2]
[334623822,1723359033313,-94766.7823349,0.0001899,2]
[334623823,1723359033323,-301.25996446,0.00018999,2]
[334623824,1723359033332,-9430.85260519,0.00019,2]
[334623825,1723359033343,-250.0,0.00019041,2]
[334623826,1723359033354,-3214.69632495,0.00019078,2]
[334623827,1723359033364,-168.6,0.00019087,2]
[334623828,1723359033374,-5071.82853917,0.00019088,2]
[334623829,1723359033383,-154.76012181,0.00019102,2]
[334623830,1723359033393,-14251.4449406,0.00019102,2]
[334623831,1723359033403,-9648.27796999,0.00019139,2]
[334623832,1723359033413,-3090.31067256,0.00019139,2]
[334623833,1723359033424,-1163.86062826,0.00019139,2]
[334623834,1723359033435,-2280.2888261,0.00019155,3]
[334623835,1723359033444,-3493.97625036,0.00019155,2]
[334623836,1723359033453,-1764.53474525,0.00019155,2]
[334623837,1723359033462,-85990.96776208,0.00019167,2]
[334623853,1723359038752,-182.09311876,0.00015712,2]
[334623854,1723359038762,-500.0,0.0001788,2]
[334623855,1723359038773,-500.0,0.0001788,2]
[334623856,1723359038782,-500.0,0.0001788,2]
[334623857,1723359038792,-500.0,0.0001788,2]
[334623858,1723359038803,-433.00472511,0.0001788,2]
[334623859,1723359038813,-500.0,0.0001788,2]
[334623860,1723359038823,-500.0,0.0001788,2]
[334623861,1723359038834,-562.98096632,0.0001788,2]
[334623862,1723359038843,-500.0,0.00018989,2]
[334623863,1723359038853,-500.0,0.00018989,2]
[334623864,1723359038862,-500.0,0.00018989,2]
[334623865,1723359038872,-500.0,0.00018989,2]
[334623866,1723359038881,-42377.77535747,0.00018999,2]
[334623867,1723359038891,-8775.81457282,0.00019167,2]
[334623868,1723359038901,-189.8862147,0.00019167,2]
[334623869,1723359038910,-1992.83567899,0.00019167,2]
[334623870,1723359038921,-1717.1638182,0.00019167,2]
[334623871,1723359038930,-1384.13048712,0.00019167,2]
[334623872,1723359038941,-277.43269753,0.00019167,2]
[334623873,1723359038951,-2141.01768748,0.00019167,2]
[334623874,1723359038960,-35031.14789157,0.00019167,2]
[334623875,1723359038969,-1500.0,0.00019167,2]
[334623876,1723359038981,-8836.92013464,0.00019177,2]
[334623877,1723359038991,-154.76012181,0.00019177,2]
[334623878,1723359039003,-8836.92013464,0.00019177,2]
[334623879,1723359039014,-2126.37973248,0.00019177,2]
[334623880,1723359039023,-1610.90790663,0.00019177,2]
[334623881,1723359039033,-342.34390176,0.00019177,2]
[334623882,1723359039042,-1364.15976013,0.00019177,2]
[334623883,1723359039052,-168.280037,0.00019178,2]
[334623884,1723359039062,-94766.7823349,0.00019246,2]
[334623885,1723359039073,-174.63190084,0.00019256,2]
[334623886,1723359039085,-2163.84623957,0.00019256,2]
[334623887,1723359039096,-339.04568857,0.00019256,2]
[334623888,1723359039105,-319.90937201,0.00019256,2]
[334623889,1723359039116,-154.77557542,0.00019256,2]
[334623890,1723359039125,-240.94479863,0.00019256,2]
[334623891,1723359039134,-196.63865106,0.00019256,2]
[334623892,1723359039144,-639.10429466,0.00019256,2]
[334623893,1723359039155,-156.28091519,0.00019256,2]
[334623894,1723359039167,-168.6,0.00019315,2]
[334623895,1723359039177,-6075.7640318,0.00019361,2]
[334623896,1723359039188,-297.51957098,0.00019402,2]
[334623897,1723359039198,-5071.82853917,0.0001944,2]
[334623898,1723359039208,-94766.7823349,0.00019441,2]
[334623899,1723359039218,-850.13586547,0.00019451,2]
[334623900,1723359039228,-288.02845211,0.00019451,2]
[334623901,1723359039238,-850.13586547,0.00019451,2]
[334623902,1723359039250,-165.64084866,0.00019451,2]
[334623903,1723359039262,-160.25653991,0.00019451,2]
[334623904,1723359039273,-155.38583539,0.00019451,2]
[334623905,1723359039282,-414.16414531,0.00019451,2]
[334623906,1723359039292,-471.11500661,0.00019451,2]
[334623907,1723359039303,-154.80648264,0.00019451,2]
[334623908,1723359039314,-194.83432597,0.00019451,2]
[334623909,1723359039324,-154.76012181,0.00019451,2]
[334623910,1723359039334,-159.38116829,0.00019451,2]
[334623911,1723359039343,-154.78325886,0.00019451,2]
[334623912,1723359039353,-322.30330829,0.00019451,2]
[334623913,1723359039363,-601.1945502,0.00019451,2]
[334623914,1723359039372,-510.0216815,0.00019451,2]
[334623915,1723359039382,-154.77557542,0.00019477,2]
[334623916,1723359039391,-154.77557542,0.00019477,2]
[334623917,1723359039402,-188.34866886,0.00019477,2]
[334623918,1723359039412,-205.22796673,0.00019477,2]
[334623919,1723359039421,-358.15823791,0.00019477,2]
[334623920,1723359039431,-309.350365,0.00019477,2]
[334623921,1723359039440,-728.15079492,0.00019477,2]
[334623922,1723359039450,-404.08727484,0.00019477,2]
[334623923,1723359039460,-568.89588544,0.00019477,2]
[334623924,1723359039470,-5071.82853919,0.00019508,2]
[334623925,1723359039479,-168.6,0.00019543,2]
[334623926,1723359039489,-154.85284036,0.00019547,2]
[334623927,1723359039498,-156.96173825,0.00019547,2]
[334623928,1723359039507,-156.50755959,0.00019547,2]
[334623929,1723359039516,-932.99527997,0.00019547,2]
[334623930,1723359039526,-186.383964,0.00019743,2]
[334623931,1723359039535,-164.412881,0.00019743,2]
[334623932,1723359039545,-161.765437,0.00019743,2]
[334623933,1723359039556,-174.698723,0.00019743,2]
[334623934,1723359039566,-174.753683,0.00019743,2]
[334623935,1723359039575,-88888.0,0.0001976,2]
[334623936,1723359039584,-168.6,0.00019772,2]
[334623937,1723359039594,-1592.54311925,0.0001979,2]
[334623938,1723359039604,-251.766323,0.000198,2]
[334623939,1723359039614,-68840.30702867,0.0001988,2]
[334623940,1723359039626,-151.0,0.0001988,2]
[334623941,1723359039636,-151.0,0.0001988,2]
[334623942,1723359039645,-205.845508,0.0001988,2]
[334623943,1723359039656,-205.845508,0.0001988,2]
[334623944,1723359039666,-401.634777,0.0001988,2]
[334623945,1723359039679,-401.634777,0.0001988,2]
[334623946,1723359039688,-151.0,0.0001988,2]
[334623947,1723359039698,-932.99527997,0.00019999,2]
[334623948,1723359039709,-4185.35085903,0.0002,2]
[334623949,1723359039719,-250.0,0.0002,2]
[334623950,1723359039728,-12159.05640579,0.0002,2]
[334623957,1723359042193,-1795.64982845,0.00019155,2]
[334623958,1723359042202,-155.09398798,0.00019167,2]
[334623959,1723359042213,-329.49366951,0.00019256,2]
[334623960,1723359042223,-154.76012181,0.00019999,2]
[334623961,1723359042233,-26811.62164945,0.0002,2]
[334623962,1723359042243,-156.40122441,0.0002,2]
[334623963,1723359042253,-154.91015126,0.0002,2]
[334623964,1723359042262,-150.112233,0.0002,2]
[334623965,1723359042272,-154.80648964,0.0002,2]
[334623966,1723359042281,-337.57235764,0.0002,2]
[334623967,1723359042291,-154.76012181,0.0002,2]
[334623968,1723359042301,-222.78569548,0.0002,2]
[334623969,1723359042310,-20995.11417515,0.0002,2]
[334623970,1723359042319,-168.6,0.0002,2]
[334623971,1723359042328,-294.37791673,0.0002,2]
[334623972,1723359042337,-427.42147881,0.0002,2]
[334623973,1723359042346,-1392.94350918,0.0002,2]
[334623974,1723359042356,-155.42019238,0.0002,2]
[334623975,1723359042365,-155.42019238,0.0002,2]
[334623976,1723359042374,-155.144273,0.0002,2]
[334623977,1723359042387,-151.0,0.0002,2]
[334623978,1723359042399,-435.0,0.0002,2]
[334623979,1723359042411,-823.0,0.00020134,2]
[334623980,1723359042420,-168.6,0.00020228,2]
[334623981,1723359042430,-151.0,0.00020228,2]
[334623982,1723359042439,-174.698723,0.00020237,2]
[334623983,1723359042448,-694.71379029,0.0002028,2]
[334623984,1723359042459,-2605.825964,0.000203,2]
[334623985,1723359042469,-150.112233,0.000203,2]
[334623986,1723359042478,-150.112233,0.000203,2]
[334623987,1723359042487,-168.6,0.00020456,2]
[334623988,1723359042497,-151.0,0.00020456,2]
[334623989,1723359042506,-150.112233,0.000205,5]
[334623990,1723359042515,-150.521,0.00020618,2]
[334623991,1723359042526,-507.0,0.00020618,2]
[334623992,1723359042543,-1413.0,0.00020618,2]
[334623993,1723359042552,-168.6,0.00020684,2]
[334623994,1723359042563,-151.0,0.00020684,2]
[334623995,1723359042573,-25000.0,0.00020721,2]
[334623996,1723359042582,-186.383964,0.0002073,2]
[334623997,1723359042593,-164.412881,0.0002073,2]
[334623998,1723359042603,-174.698723,0.0002073,2]
[334623999,1723359042612,-156.0,0.0002078,4]
[334624000,1723359042622,-150.112233,0.000208,4]
[334624001,1723359042633,-500.0,0.00020821,2]
[334624002,1723359042645,-500.0,0.00020821,3]
[334624003,1723359042654,-500.0,0.00020821,3]
[334624004,1723359042663,-500.0,0.00020821,3]
[334624005,1723359042676,-500.0,0.00020821,3]
[334624006,1723359042686,-500.0,0.00020821,3]
[334624007,1723359042695,-500.0,0.00020821,3]
[334624008,1723359042704,-500.0,0.00020821,3]
[334624009,1723359042713,-275.78751745,0.00020821,3]
[334624010,1723359042722,-640.00895357,0.00020821,3]
[334624011,1723359042731,-500.0,0.00020821,3]
[334624012,1723359042741,-500.0,0.00020821,3]
[334624013,1723359042750,-500.0,0.00020821,3]
[334624014,1723359042759,-514.2943136,0.00020821,3]
[334624015,1723359042769,-535.91967811,0.00020821,3]
[334624016,1723359042778,-1162.59,0.00020821,3]
[334624017,1723359042787,-500.0,0.00020821,3]
[334624018,1723359042796,-504.89497685,0.00020821,3]
[334624019,1723359042805,-509.42676098,0.00020821,3]
[334624020,1723359042815,-504.67676047,0.00020821,3]
[334624021,1723359042824,-502.00078337,0.00020821,3]
[334624022,1723359042833,-508.39461031,0.00020821,3]
[334624023,1723359042842,-502.62172774,0.00020821,3]
[334624024,1723359042851,-531.75765102,0.00020821,3]
[334624025,1723359042861,-504.5996778,0.00020821,3]
[334624026,1723359042871,-500.0,0.00020821,3]
[334624027,1723359042882,-500.0,0.00020821,3]
[334624028,1723359042893,-500.0,0.00020821,3]
[334624029,1723359042902,-500.0,0.00020821,3]
[334624030,1723359042912,-500.0,0.00020821,3]
[334624031,1723359042922,-500.0,0.00020821,3]
[334624033,1723359042931,-500.0,0.00020821,3]
[334624035,1723359042940,-508.88302386,0.00020821,3]
[334624037,1723359042950,-500.0,0.00020821,3]
[334624038,1723359042959,-580.75292204,0.00020821,3]
[334624039,1723359042968,-506.72,0.00020821,3]
[334624040,1723359042978,-500.0,0.00020821,3]
[334624041,1723359042987,-517.93118177,0.00020821,3]
[334624042,1723359042997,-500.0,0.00020821,3]
[334624043,1723359043007,-564.59,0.00020821,3]
[334624052,1723359043169,-211.032947,0.00020821,2]
[334624054,1723359043179,-500.0,0.00020821,3]
[334624056,1723359043188,-500.0,0.00020821,3]
[334624058,1723359043199,-634.66813032,0.00020821,3]
[334624060,1723359043209,-500.0,0.00020821,3]
[334624062,1723359043219,-500.0,0.00020821,3]
[334624064,1723359043229,-500.0,0.00020821,3]
[334624066,1723359043239,-500.0,0.00020821,3]
[334624067,1723359043248,-500.0,0.00020821,3]
[334624068,1723359043258,-500.0,0.00020821,3]
[334624069,1723359043269,-508.69991338,0.00020821,3]
[334624070,1723359043278,-500.0,0.00020821,3]
[334624071,1723359043289,-500.0,0.00020821,3]
[334624072,1723359043298,-529.1029252,0.00020821,3]
[334624073,1723359043309,-838.13,0.00020821,3]
[334624074,1723359043318,-500.0,0.00020821,3]
[334624075,1723359043329,-500.0,0.00020821,3]
[334624076,1723359043339,-500.0,0.00020821,3]
[334624077,1723359043348,-511.30519887,0.00020821,3]
[334624078,1723359043358,-545.08891985,0.00020821,3]
[334624079,1723359043368,-500.0,0.00020821,3]
[334624080,1723359043378,-1283.38,0.00020821,3]
[334624081,1723359043388,-500.0,0.00020821,3]
[334624082,1723359043398,-500.0,0.00020821,3]
[334624084,1723359043408,-500.0,0.00020821,3]
[334624085,1723359043420,-389.9474875,0.00020821,3]
[334624086,1723359043429,-500.0,0.00020821,3]
[334624087,1723359043438,-151.428308,0.00020821,2]
[334624088,1723359043448,-500.0,0.00020821,3]
[334624089,1723359043457,-500.0,0.00020821,3]
[334624090,1723359043466,-500.0,0.00020821,3]
[334624091,1723359043476,-500.0,0.00020821,3]
[334624092,1723359043487,-501.25767554,0.00020821,3]
[334624093,1723359043496,-500.0,0.00020821,3]
[334624094,1723359043506,-500.0,0.00020821,3]
[334624095,1723359043515,-997.97,0.00020821,3]
[334624096,1723359043527,-523.76010816,0.00020821,3]
[334624097,1723359043537,-500.0,0.00020821,3]
[334624098,1723359043546,-508.02683301,0.00020821,3]
[334624099,1723359043555,-500.0,0.00020821,3]
[334624100,1723359043563,-500.0,0.00020821,3]
[334624101,1723359043572,-500.0,0.00020821,3]
[334624102,1723359043581,-500.0,0.00020821,3]
[334624103,1723359043591,-500.0,0.00020821,3]
[334624104,1723359043601,-500.0,0.00020821,3]
[334624105,1723359043611,-500.0,0.00020821,3]
[334624106,1723359043621,-500.0,0.00020821,3]
[334624107,1723359043637,-500.0,0.00020821,3]
[334624108,1723359043646,-500.0,0.00020821,3]
[334624109,1723359043656,-276.9895369,0.00020821,3]
[334624110,1723359043666,-434.84838924,0.00020821,3]
[334624111,1723359043680,-506.7578891,0.00020821,3]
[334624112,1723359043690,-500.0,0.00020821,3]
[334624113,1723359043701,-500.0,0.00020821,3]
[334624114,1723359043712,-154.181858,0.00020821,2]
[334624116,1723359043722,-500.0,0.00020821,3]
[334624118,1723359043731,-151.0,0.00020821,2]
[334624121,1723359043741,-283.30390946,0.00020821,3]
[334624124,1723359043751,-500.0,0.00020821,3]
[334624127,1723359043761,-500.0,0.00020821,3]
[334624128,1723359043770,-500.0,0.00020821,3]
[334624129,1723359043779,-581.22,0.00020821,3]
[334624130,1723359043789,-500.0,0.00020821,3]
[334624131,1723359043798,-500.0,0.00020821,3]
[334624132,1723359043808,-500.0,0.00020821,3]
[334624133,1723359043818,-500.0,0.00020821,2]
[334624134,1723359043828,-500.0,0.00020821,3]
[334624135,1723359043838,-237.410813,0.00020821,2]
[334624136,1723359043847,-237.410813,0.00020821,2]
[334624137,1723359043856,-780.95,0.00020821,3]
[334624138,1723359043868,-500.0,0.00020821,3]
[334624139,1723359043877,-500.0,0.00020821,3]
[334624140,1723359043890,-500.0,0.00020821,3]
[334624141,1723359043899,-500.0,0.00020821,3]
[334624142,1723359043909,-645.85087274,0.00020821,3]
[334624143,1723359043919,-500.0,0.00020821,3]
[334624144,1723359043929,-500.0,0.00020821,3]
[334624145,1723359043938,-917.55,0.00020821,3]
[334624146,1723359043949,-518.4033725,0.00020821,3]
[334624147,1723359043960,-1002.09,0.00020821,3]
[334624148,1723359043969,-500.0,0.00020821,3]
[334624149,1723359043978,-500.0,0.00020821,3]
[334624150,1723359043990,-500.0,0.00020821,3]
[334624151,1723359043999,-500.0,0.00020821,3]
[334624152,1723359044010,-500.0,0.00020821,3]
[334624153,1723359044020,-500.0,0.00020821,3]
[334624154,1723359044029,-891.13,0.00020821,3]
[334624155,1723359044039,-500.0,0.00020821,3]
[334624156,1723359044048,-500.0,0.00020821,3]
[334624157,1723359044057,-500.0,0.00020821,3]
[334624158,1723359044066,-1845.89,0.00020821,3]
[334624159,1723359044076,-500.0,0.00020821,3]
[334624160,1723359044087,-508.8483183,0.00020821,3]
[334624161,1723359044098,-500.0,0.00020821,3]
[334624162,1723359044107,-500.0,0.00020821,3]
[334624163,1723359044118,-168.42785613,0.00020821,3]
[334624164,1723359044129,-500.0,0.00020821,3]
[334624165,1723359044141,-500.0,0.00020821,3]
[334624166,1723359044151,-500.0,0.00020821,3]
[334624167,1723359044161,-500.0,0.00020821,3]
[334624168,1723359044170,-500.0,0.00020821,3]
[334624169,1723359044179,-500.0,0.00020821,3]
[334624170,1723359044189,-479.19456269,0.00020821,3]
[334624171,1723359044199,-500.0,0.00020821,3]
[334624172,1723359044209,-500.0,0.00020821,3]
[334624173,1723359044219,-198.32995339,0.00020821,3]
[334624174,1723359044229,-500.0,0.00020821,3]
[334624175,1723359044238,-500.0,0.00020821,3]
[334624176,1723359044247,-500.0,0.00020821,3]
[334624177,1723359044257,-151.0,0.00020821,2]
[334624178,1723359044266,-500.0,0.00020821,3]
[334624179,1723359044275,-500.0,0.00020821,3]
[334624180,1723359044285,-501.74591873,0.00020821,3]
[334624181,1723359044294,-757.13,0.00020821,3]
[334624182,1723359044303,-500.0,0.00020821,3]
[334624183,1723359044314,-508.75715373,0.00020821,3]
[334624184,1723359044323,-500.0,0.00020821,3]
[334624185,1723359044333,-503.55471963,0.00020821,3]
[334624187,1723359044342,-508.93244788,0.00020821,3]
[334624188,1723359044351,-914.93,0.00020821,3]
[334624189,1723359044360,-500.0,0.00020821,3]
[334624190,1723359044370,-574.204752,0.00020821,2]
[334624191,1723359044379,-500.0,0.00020821,3]
[334624192,1723359044393,-500.0,0.00020821,3]
[334624193,1723359044404,-593.46,0.00020821,3]
[334624194,1723359044414,-574.204752,0.00020821,2]
[334624195,1723359044423,-425.80085138,0.00020821,3]
[334624196,1723359044434,-1127.0,0.00020821,3]
[334624197,1723359044443,-517.65,0.00020821,3]
[334624198,1723359044454,-500.0,0.00020821,3]
[334624199,1723359044464,-584.43,0.00020821,2]
[334624200,1723359044475,-500.0,0.00020821,3]
[334624201,1723359044485,-1635.37,0.00020821,3]
[334624202,1723359044495,-500.0,0.00020821,3]
[334624203,1723359044505,-500.0,0.00020821,3]
[334624204,1723359044514,-500.0,0.00020821,3]
[334624205,1723359044524,-151.0,0.00020821,2]
[334624206,1723359044533,-500.0,0.00020821,3]
[334624207,1723359044543,-151.0,0.00020821,2]
[334624208,1723359044552,-536.60571055,0.00020821,3]
[334624209,1723359044561,-593.91,0.00020821,3]
[334624210,1723359044570,-500.0,0.00020821,3]
[334624211,1723359044580,-500.0,0.00020821,3]
[334624212,1723359044589,-500.0,0.00020821,3]
[334624213,1723359044598,-603.81,0.00020821,3]
[334624214,1723359044607,-500.0,0.00020821,3]
[334624215,1723359044618,-500.0,0.00020821,3]
[334624216,1723359044628,-506.05797487,0.00020821,3]
[334624217,1723359044642,-521.74586568,0.00020821,3]
[334624218,1723359044651,-500.0,0.00020821,3]
[334624219,1723359044661,-788.05,0.00020821,3]
[334624220,1723359044674,-583.62858373,0.00020821,3]
[334624221,1723359044683,-758.03,0.00020821,3]
[334624222,1723359044693,-619.36,0.00020821,3]
[334624223,1723359044702,-664.29,0.00020821,3]
[334624224,1723359044712,-500.0,0.00020821,3]
[334624225,1723359044722,-22.83258128,0.00020821,3]
[334624240,1723359046752,-154.76012181,0.00019167,2]
[334624241,1723359046761,-288.02845211,0.00019256,2]
[334624242,1723359046771,-850.13586547,0.00019256,2]
[334624243,1723359046780,-694.71379029,0.00019999,2]
[334624244,1723359046789,-477.16741872,0.00020821,3]
[334624245,1723359046799,-1398.62,0.00020821,3]
[334624246,1723359046808,-500.0,0.00020821,3]
[334624247,1723359046818,-500.0,0.00020821,3]
[334624248,1723359046828,-284.2336576,0.00020821,3]
[334624259,1723359207371,251.766321,0.00015,2]
[334624261,1723359257191,225.46733991,0.00015,2]
[334624262,1723359261103,309.39667956,0.00015,2]
[334624263,1723359301654,165.932474,0.00014247,2]
[334624267,1723359374903,1669.01055043,0.00014247,2]
[334624270,1723359417495,155.39973714,0.00014247,2]
[334624271,1723359450525,158.48348286,0.00014247,2]
[334624285,1723359838701,168.385249,0.00014247,2]
[334624293,1723360035153,-191.81369542,0.00015027,2]
[334624294,1723360035179,-6784.62787967,0.00015517,2]
[334624370,1723360239213,-300.0,0.00015516,2]
[334624371,1723360239225,-300.0,0.00015516,2]
[334624372,1723360239237,-18115.37212033,0.00015517,2]
[334624373,1723360239249,-913.17015926,0.00015517,2]
[334624374,1723360239261,-150.112233,0.000157,2]
[334624375,1723360239274,-178.39529262,0.00015712,2]
[334624376,1723360239286,-182.09311876,0.00015744,2]
[334624377,1723360239298,-184.024592,0.00016037,2]
[334624378,1723360239311,-154.76012181,0.00016095,2]
[334624379,1723360239323,-150.112233,0.000164,2]
[334624380,1723360239334,-250.0,0.00016467,2]
[334624381,1723360239346,-250.0,0.00016512,2]
[334624382,1723360239359,-250.0,0.00016558,2]
[334624383,1723360239370,-250.0,0.00016603,2]
[334624384,1723360239384,-250.0,0.00016648,2]
[334624385,1723360239396,-250.0,0.00016693,2]
[334624386,1723360239407,-250.0,0.00016738,2]
[334624387,1723360239418,-250.0,0.00016783,2]
[334624388,1723360239429,-250.0,0.00016829,2]
[334624389,1723360239440,-250.0,0.00016874,2]
[334624390,1723360239452,-250.0,0.00016919,2]
[334624391,1723360239464,-250.0,0.00016964,2]
[334624392,1723360239476,-420.0,0.00016972,2]
[334624393,1723360239490,-150.112233,0.00017,2]